fUSD/lending_fUSD_20241223
["ID","MTS","AMOUNT","RATE_DAILY","PERIOD"]
[346421923,1734954676893,-437.09,0.000173,2]
[346421924,1734954676902,-727.81682513,0.000173,2]
[346421925,1734954676913,-42.88317487,0.000173,2]
[346421926,1734954676922,-150.0,0.00018362,2]
[346421927,1734954676931,-150.0,0.00018813,2]
[346421928,1734954676940,-150.0,0.00018869,2]
[346421929,1734954676949,-150.0,0.00018948,2]
[346421930,1734954676960,-150.0,0.00019045,2]
[346421931,1734954676971,-500.0,0.00019178,2]
[346421932,1734954676980,-150.0,0.00019196,2]
[346421933,1734954676990,-150.0,0.00019228,2]
[346421934,1734954676999,-150.0,0.0001943,2]
[346421935,1734954677012,-150.0,0.000196,2]
[346421936,1734954677021,-20.56216724,0.00019726,2]
[346421937,1734954677030,-767.12,0.00019726,2]
[346421938,1734954677040,-500.0,0.00019726,2]
[346421939,1734954677049,-154.789285,0.00019726,2]
[346421940,1734954677059,-500.0,0.00019726,2]
[346421941,1734954677067,-113.00509442,0.00019726,2]
[346421942,1734954677082,-386.99490558,0.00019726,2]
[346421943,1734954677095,-536.29,0.00019726,2]
[346421944,1734954677105,-1796.72432572,0.00019726,2]
[346421945,1734954677116,-1507.60567428,0.00019726,2]
[346421946,1734954677125,-753.54,0.00019726,2]
[346421947,1734954677134,-500.0,0.00019726,2]
[346421948,1734954677143,-540.67,0.00019726,2]
[346421949,1734954677152,-524.4,0.00019726,2]
[346421950,1734954677161,-1162.37,0.00019726,2]
[346421951,1734954677170,-500.0,0.00019726,2]
[346421952,1734954677180,-998.09,0.00019726,2]
[346421953,1734954677190,-628.85,0.00019726,2]
[346421954,1734954677200,-151.0,0.00019726,2]
[346421955,1734954677209,-1754.63,0.00019726,2]
[346421956,1734954677218,-500.0,0.00019726,2]
[346421957,1734954677228,-339.89441844,0.00019726,2]
[346421958,1734954677241,-160.10558156,0.00019726,2]
[346421959,1734954677251,-166.63596349,0.00019726,2]
[346421960,1734954677264,-757.68751361,0.00019726,2]
[346421961,1734954677275,-155.3765229,0.00019726,2]
[346421962,1734954677285,-389.11271001,0.00019726,2]
[346421963,1734954677294,-937.39,0.00019726,2]
[346421964,1734954677304,-500.0,0.00019726,2]
[346421965,1734954677314,-500.0,0.00019726,2]
[346421966,1734954677323,-1055.72,0.00019726,2]
[346421967,1734954677332,-500.0,0.00019726,2]
[346421968,1734954677342,-384.65815919,0.00019726,2]
[346421969,1734954677354,-112.77796479,0.00019726,2]
[346421970,1734954677364,-500.0,0.00019726,2]
[346421971,1734954677374,-221.10191232,0.00019726,2]
[346421972,1734954677386,-278.89808768,0.00019726,2]
[346421973,1734954677396,-2019.8,0.00019726,2]
[346421974,1734954677405,-500.0,0.00019726,2]
[346421975,1734954677415,-1134.04912936,0.00019726,2]
[346421976,1734954677774,-717.86,0.00019178,2]
[346421977,1734954677784,-500.0,0.00019178,2]
[346421978,1734954677793,-153.0,0.00019301,2]
[346421979,1734954677802,-138.80135946,0.00019452,2]
[346421980,1734954677813,-579.05864054,0.00019452,2]
[346421981,1734954677822,-338.94135946,0.00019452,2]
[346421982,1734954677837,-161.05864054,0.00019452,2]
[346421983,1734954677847,-92.91087064,0.00019726,2]
[346421984,1734954677856,-523.77207382,0.00019726,2]
[346421985,1734954677867,-222.67792618,0.00019726,2]
[346421986,1734954677876,-500.0,0.00019726,2]
[346421987,1734954677885,-500.0,0.00019726,2]
[346421988,1734954677894,-880.72,0.00019726,2]
[346421989,1734954677903,-500.0,0.00019726,2]
[346421990,1734954677912,-500.0,0.00019726,2]
[346421991,1734954677921,-500.0,0.00019726,2]
[346421992,1734954677930,-156.15027382,0.00019726,2]
[346421993,1734954677946,-1037.03972618,0.00019726,2]
[346421994,1734954677955,-451.98945641,0.00019726,2]
[346421995,1734954677970,-259.91533532,0.00019726,2]
[346421996,1734954677981,-853.05,0.00019726,2]
[346421997,1734954677992,-994.57520827,0.00019726,2]
[346421998,1734954678001,-1034.12,0.00019726,2]
[346421999,1734954678014,-500.0,0.00019726,2]
[346422000,1734954678023,-500.0,0.00019726,2]
[346422001,1734954678032,-500.0,0.00019726,2]
[346422002,1734954678041,-500.0,0.00019726,2]
[346422003,1734954678051,-500.0,0.00019726,2]
[346422004,1734954678061,-641.11,0.00019726,2]
[346422005,1734954678070,-500.0,0.00019726,2]
[346422006,1734954678079,-500.0,0.00019726,2]
[346422007,1734954678089,-500.0,0.00019726,2]
[346422008,1734954678098,-1274.12,0.00019726,2]
[346422009,1734954678108,-500.0,0.00019726,2]
[346422010,1734954678117,-503.96693471,0.00019726,2]
[346422011,1734954678126,-500.0,0.00019726,2]
[346422012,1734954678136,-1687.34,0.00019726,2]
[346422013,1734954678145,-500.0,0.00019726,2]
[346422014,1734954678154,-727.66,0.00019726,2]
[346422015,1734954678164,-500.0,0.00019726,2]
[346422016,1734954678173,-500.0,0.00019726,2]
[346422017,1734954678183,-500.0,0.00019726,2]
[346422018,1734954678193,-2352.52,0.00019726,2]
[346422019,1734954678203,-1815.52,0.00019726,2]
[346422020,1734954678213,-500.0,0.00019726,2]
[346422021,1734954678222,-760.46,0.00019726,2]
[346422022,1734954678232,-500.0,0.00019726,2]
[346422023,1734954678242,-500.0,0.00019726,2]
[346422024,1734954678252,-500.0,0.00019726,2]
[346422025,1734954678262,-500.0,0.00019726,2]
[346422026,1734954678271,-831.58,0.00019726,2]
[346422027,1734954678281,-500.0,0.00019726,2]
[346422028,1734954678291,-500.0,0.00019726,2]
[346422029,1734954678300,-775.47,0.00019726,2]
[346422030,1734954678310,-878.37,0.00019726,2]
[346422031,1734954678320,-1059.0,0.00019726,2]
[346422032,1734954678330,-500.0,0.00019726,2]
[346422033,1734954678339,-699.35,0.00019726,2]
[346422034,1734954678348,-562.58,0.00019726,2]
[346422035,1734954678357,-500.0,0.00019726,2]
[346422036,1734954678367,-709.45,0.00019726,2]
[346422037,1734954678376,-1747.23,0.00019726,2]
[346422038,1734954678386,-591.21,0.00019726,2]
[346422039,1734954678396,-1061.01,0.00019726,2]
[346422040,1734954678406,-2307.99,0.00019726,2]
[346422041,1734954678415,-500.0,0.00019726,2]
[346422042,1734954678426,-898.96,0.00019726,2]
[346422043,1734954678435,-3465.4,0.00019726,2]
[346422044,1734954678445,-500.0,0.00019726,2]
[346422045,1734954678455,-2613.69,0.00019726,2]
[346422046,1734954678465,-500.0,0.00019726,2]
[346422047,1734954678474,-161.10128861,0.00019726,2]
[346422048,1734954678497,-338.89871139,0.00019726,2]
[346422049,1734954678507,-500.0,0.00019726,2]
[346422050,1734954678517,-500.0,0.00019726,2]
[346422051,1734954678527,-500.0,0.00019726,2]
[346422052,1734954678537,-571.7,0.00019726,2]
[346422053,1734954678547,-1063.23,0.00019726,2]
[346422054,1734954678556,-151.0,0.00019726,2]
[346422055,1734954678566,-1294.0,0.00019726,2]
[346422056,1734954678576,-500.0,0.00019726,2]
[346422057,1734954678585,-705.88,0.00019726,2]
[346422058,1734954678595,-1168.7,0.00019726,2]
[346422059,1734954678604,-7.7730958,0.00019726,2]
[346422060,1734954678617,-1674.0169042,0.00019726,2]
[346422061,1734954678627,-500.0,0.00019726,2]
[346422062,1734954678637,-151.0,0.00019726,2]
[346422063,1734954678646,-500.0,0.00019726,2]
[346422064,1734954678655,-952.73,0.00019726,2]
[346422065,1734954678664,-1238.72,0.00019726,2]
[346422066,1734954678674,-500.0,0.00019726,2]
[346422067,1734954678683,-500.0,0.00019726,2]
[346422068,1734954678693,-500.0,0.00019726,2]
[346422069,1734954678702,-500.0,0.00019726,2]
[346422070,1734954678712,-500.0,0.00019726,2]
[346422071,1734954678721,-709.72,0.00019726,2]
[346422072,1734954678731,-2512.69,0.00019726,2]
[346422073,1734954678741,-2366.13,0.00019726,2]
[346422074,1734954678751,-978.68,0.00019726,2]
[346422075,1734954678760,-500.0,0.00019726,2]
[346422076,1734954678770,-1967.55,0.00019726,2]
[346422077,1734954678780,-500.0,0.00019726,2]
[346422078,1734954678794,-1054.2,0.00019726,2]
[346422079,1734954678803,-500.0,0.00019726,2]
[346422080,1734954678813,-500.0,0.00019726,2]
[346422081,1734954678822,-151.0,0.00019726,2]
[346422082,1734954678832,-500.0,0.00019726,2]
[346422083,1734954678841,-500.0,0.00019726,2]
[346422084,1734954678851,-500.0,0.00019726,2]
[346422085,1734954678860,-1268.64,0.00019726,2]
[346422086,1734954678870,-500.0,0.00019726,2]
[346422087,1734954678880,-500.0,0.00019726,2]
[346422088,1734954678890,-500.0,0.00019726,2]
[346422089,1734954678900,-863.59,0.00019726,2]
[346422090,1734954678909,-762.41,0.00019726,2]
[346422091,1734954678919,-419.62854864,0.00019726,2]
[346422092,1734954678933,-280.00145136,0.00019726,2]
[346422093,1734954678942,-2455.11,0.00019726,2]
[346422094,1734954678952,-1020.53,0.00019726,2]
[346422095,1734954678962,-1238.96,0.00019726,2]
[346422096,1734954678971,-500.0,0.00019726,2]
[346422097,1734954678981,-1081.46291112,0.00019726,2]
[346422098,1734954890394,222.84,0.00010137,2]
[346422101,1734955617422,-175.42295132,0.000144,5]
[346422105,1734955797620,155.59,0.00010137,2]
[346422112,1734955831719,-5386.0,0.000141,5]
[346422113,1734955831729,-30596.2448826,0.00016392,2]
[346422114,1734955831738,-430.71,0.00016403,2]
[346422115,1734955831747,-222.84,0.00016813,2]
[346422116,1734955831757,-714.68,0.0001788,2]
[346422117,1734955831766,-5624.05,0.0001788,2]
[346422118,1734955831775,-250.0,0.00017904,2]
[346422119,1734955831785,-150.0,0.00017987,2]
[346422120,1734955831794,-1000.0,0.00018017,2]
[346422121,1734955831803,-17818.17484425,0.00018044,2]
[346422122,1734955831822,-2842.36515575,0.00018044,2]
[346422123,1734955831831,-250.0,0.00018054,2]
[346422124,1734955831840,-305.04,0.00018076,2]
[346422125,1734955831849,-200.0,0.00018083,2]
[346422126,1734955831859,-163.66,0.00018101,2]
[346422127,1734955831868,-815.29,0.00018101,2]
[346422128,1734955831877,-273.24,0.00018134,2]
[346422129,1734955831887,-770.7,0.000182,2]
[346422130,1734955831896,-150.0,0.00018592,2]
[346422131,1734955831905,-3887.0,0.00018592,2]
[346422132,1734955831915,-4162.0,0.00018592,2]
[346422133,1734955831924,-1170.0,0.00018592,2]
[346422134,1734955831933,-1025.0,0.00018667,2]
[346422135,1734955831943,-202.81,0.00018667,2]
[346422136,1734955831952,-201.59,0.00018667,2]
[346422137,1734955831961,-200.32,0.00018667,2]
[346422138,1734955831970,-200.21,0.00018667,2]
[346422139,1734955831980,-201.08,0.00018667,2]
[346422140,1734955831989,-200.02,0.00018667,2]
[346422141,1734955831999,-202.95,0.00018667,2]
[346422142,1734955832008,-200.48,0.00018667,2]
[346422143,1734955832019,-430.71,0.00018667,2]
[346422144,1734955832029,-1000.0,0.00018695,2]
[346422145,1734955832038,-201.1,0.00018695,2]
[346422146,1734955832047,-202.83,0.00018695,2]
[346422147,1734955832055,-228.71,0.00018695,2]
[346422148,1734955832065,-5006.373,0.00018695,2]
[346422149,1734955832074,-37051.9896,0.000187,2]
[346422150,1734955832083,-1025.0,0.000187,2]
[346422151,1734955832093,-488.276,0.0001874,2]
[346422152,1734955832102,-155.82571011,0.00018795,2]
[346422153,1734955832111,-500.0,0.000188,2]
[346422154,1734955832120,-200.14,0.000188,2]
[346422155,1734955832130,-1154.34420945,0.000188,2]
[346422156,1734955832139,-151.58,0.00018846,2]
[346422157,1734955832148,-155.82571011,0.00018904,2]
[346422158,1734955832157,-2000.0,0.00019,2]
[346422159,1734955832166,-2084.43045307,0.00019,2]
[346422160,1734955832175,-10000.0,0.00019,2]
[346422161,1734955832185,-5129.77,0.00019,2]
[346422162,1734955832194,-2957.0,0.00019,2]
[346422163,1734955832203,-500.215723,0.00019,2]
[346422164,1734955832212,-155.82571011,0.00019014,2]
[346422165,1734955832221,-300.0,0.00019014,2]
[346422166,1734955832230,-152.0,0.00019027,3]
[346422167,1734955832239,-2700.0,0.00019038,2]
[346422168,1734955832248,-1100.0,0.00019038,2]
[346422169,1734955832257,-934.56421852,0.00019078,2]
[346422170,1734955832266,-150.9592527,0.00019078,2]
[346422171,1734955832275,-16846.93477843,0.00019078,2]
[346422172,1734955832297,-1959.29525837,0.00019078,2]
[346422173,1734955832309,-664.01642286,0.00019078,2]
[346422174,1734955832320,-526.74260338,0.00019078,2]
[346422175,1734955832335,-346.64534902,0.00019078,2]
[346422176,1734955832357,-3602.92608794,0.00019078,2]
[346422177,1734955832366,-4992.4492,0.00019078,2]
[346422178,1734955832375,-5000.0,0.00019078,2]
[346422179,1734955832384,-394.8885,0.00019078,2]
[346422180,1734955832393,-13559.55463074,0.00019078,2]
[346422181,1734955832404,-278.8692688,0.00019078,2]
[346422182,1734955832415,-1085.5797514,0.00019078,2]
[346422183,1734955832441,-9100.74424906,0.00019078,2]
[346422184,1734955832451,-155.82571011,0.00019096,2]
[346422185,1734955832460,-770.7,0.000191,2]
[346422186,1734955832469,-1000.0,0.0001915,2]
[346422187,1734955832478,-934.56421846,0.00019158,2]
[346422188,1734955832487,-150.0,0.00019177,2]
[346422189,1734955832496,-176.54649248,0.00019177,2]
[346422190,1734955832509,-156.651929,0.00019178,2]
[346422191,1734955832518,-254.39850489,0.00019178,2]
[346422192,1734955832536,-245.60149511,0.00019178,2]
[346422193,1734955832546,-538.93,0.00019178,2]
[346422194,1734955832555,-500.0,0.00019178,2]
[346422195,1734955832565,-505.56,0.00019178,2]
[346422196,1734955832574,-500.0,0.00019178,2]
[346422197,1734955832583,-500.0,0.00019178,2]
[346422198,1734955832592,-500.0,0.00019178,2]
[346422199,1734955832601,-500.0,0.00019178,2]
[346422200,1734955832611,-500.0,0.00019178,2]
[346422201,1734955832619,-500.0,0.00019178,2]
[346422202,1734955832628,-500.0,0.00019178,2]
[346422203,1734955832637,-270.90850489,0.00019178,2]
[346422204,1734955832650,-229.09149511,0.00019178,2]
[346422205,1734955832660,-580.09794215,0.00019178,2]
[346422206,1734955832670,-500.0,0.00019178,2]
[346422207,1734955832679,-500.0,0.00019178,2]
[346422208,1734955832689,-500.0,0.00019178,2]
[346422209,1734955832699,-500.0,0.00019178,2]
[346422210,1734955832708,-500.0,0.00019178,2]
[346422211,1734955832717,-500.0,0.00019178,2]
[346422212,1734955832726,-500.0,0.00019178,2]
[346422213,1734955832735,-500.0,0.00019178,2]
[346422214,1734955832745,-8.07724232,0.00019178,2]
[346422215,1734955832757,-491.92275768,0.00019178,2]
[346422216,1734955832766,-500.0,0.00019178,2]
[346422217,1734955832774,-113.19347617,0.00019178,2]
[346422218,1734955832786,-386.80652383,0.00019178,2]
[346422219,1734955832795,-500.0,0.00019178,2]
[346422220,1734955832804,-500.0,0.00019178,2]
[346422221,1734955832813,-500.0,0.00019178,2]
[346422222,1734955832822,-500.0,0.00019178,2]
[346422223,1734955832831,-29.29347617,0.00019178,2]
[346422228,1734955837528,-478.64311141,0.00019178,2]
[346422229,1734955837538,-500.0,0.00019178,2]
[346422230,1734955837548,-1169.04,0.00019178,2]
[346422231,1734955837558,-500.0,0.00019178,2]
[346422232,1734955837567,-500.0,0.00019178,2]
[346422233,1734955837577,-500.0,0.00019178,2]
[346422234,1734955837587,-500.0,0.00019178,2]
[346422235,1734955837597,-500.0,0.00019178,2]
[346422236,1734955837607,-500.0,0.00019178,2]
[346422237,1734955837616,-873.33,0.00019178,2]
[346422238,1734955837626,-956.73,0.00019178,2]
[346422239,1734955837635,-500.0,0.00019178,2]
[346422240,1734955837645,-835.92,0.00019178,2]
[346422241,1734955837654,-500.0,0.00019178,2]
[346422242,1734955837664,-653.14,0.00019178,2]
[346422243,1734955837673,-500.0,0.00019178,2]
[346422244,1734955837684,-504.91778223,0.00019178,2]
[346422245,1734955837693,-854.47,0.00019178,2]
[346422246,1734955837703,-500.0,0.00019178,2]
[346422247,1734955837713,-500.0,0.00019178,2]
[346422248,1734955837722,-500.0,0.00019178,2]
[346422249,1734955837732,-591.17,0.00019178,2]
[346422250,1734955837742,-776.47,0.00019178,2]
[346422251,1734955837751,-500.0,0.00019178,2]
[346422252,1734955837761,-500.0,0.00019178,2]
[346422253,1734955837771,-500.0,0.00019178,2]
[346422254,1734955837782,-966.14,0.00019178,2]
[346422255,1734955837791,-500.0,0.00019178,2]
[346422256,1734955837802,-532.14,0.00019178,2]
[346422257,1734955837811,-500.0,0.00019178,2]
[346422258,1734955837820,-406.69041627,0.00019178,2]
[346422259,1734955837830,-500.0,0.00019178,2]
[346422260,1734955837839,-500.0,0.00019178,2]
[346422261,1734955837848,-300.0,0.00019178,2]
[346422262,1734955837858,-1580.15,0.00019178,2]
[346422263,1734955837868,-500.0,0.00019178,2]
[346422264,1734955837877,-621.54,0.00019178,2]
[346422265,1734955837887,-500.0,0.00019178,2]
[346422266,1734955837896,-614.05,0.00019178,2]
[346422267,1734955837905,-500.0,0.00019178,2]
[346422268,1734955837916,-500.0,0.00019178,2]
[346422269,1734955837926,-155.988333,0.00019178,2]
[346422270,1734955837935,-500.0,0.00019178,2]
[346422271,1734955837945,-500.0,0.00019178,2]
[346422272,1734955837955,-1432.78721827,0.00019178,2]
[346422274,1734955837980,-503.03113123,0.00019178,2]
[346422277,1734955837999,-1915.9090235,0.00019178,2]
[346422279,1734955838008,-671.28,0.00019178,2]
[346422280,1734955838018,-1448.4,0.00019178,2]
[346422282,1734955838028,-153.753901,0.00019178,2]
[346422283,1734955838037,-4179.890238,0.00019178,2]
[346422285,1734955838047,-1451.54,0.00019178,2]
[346422287,1734955838056,-405.55610801,0.00019178,2]
[346422290,1734955838066,-500.0,0.00019178,2]
[346422291,1734955838075,-500.0,0.00019178,2]
[346422294,1734955838085,-1385.85,0.00019178,2]
[346422296,1734955838094,-500.0,0.00019178,2]
[346422298,1734955838103,-24.32072949,0.00019178,2]
[346422300,1734955838115,-475.67927051,0.00019178,2]
[346422302,1734955838124,-500.0,0.00019178,2]
[346422304,1734955838134,-515.9,0.00019178,2]
[346422306,1734955838143,-500.0,0.00019178,2]
[346422308,1734955838152,-500.0,0.00019178,2]
[346422310,1734955838161,-500.0,0.00019178,2]
[346422312,1734955838170,-500.0,0.00019178,2]
[346422314,1734955838181,-500.0,0.00019178,2]
[346422316,1734955838190,-706.92,0.00019178,2]
[346422318,1734955838200,-154.80747412,0.00019178,2]
[346422320,1734955838209,-500.0,0.00019178,2]
[346422322,1734955838218,-500.0,0.00019178,2]
[346422324,1734955838228,-1924.85,0.00019178,2]
[346422326,1734955838237,-500.0,0.00019178,2]
[346422328,1734955838247,-500.0,0.00019178,2]
[346422330,1734955838257,-500.0,0.00019178,2]
[346422332,1734955838266,-641.33,0.00019178,2]
[346422334,1734955838275,-500.0,0.00019178,2]
[346422336,1734955838284,-34.26374118,0.00019178,2]
[346422338,1734955838298,-465.73625882,0.00019178,2]
[346422340,1734955838307,-500.0,0.00019178,2]
[346422342,1734955838316,-711.88,0.00019178,2]
[346422344,1734955838325,-466.17149884,0.00019178,2]
[346422346,1734955838337,-33.82850116,0.00019178,2]
[346422348,1734955838346,-500.0,0.00019178,2]
[346422350,1734955838355,-500.0,0.00019178,2]
[346422352,1734955838364,-500.0,0.00019178,2]
[346422354,1734955838373,-500.0,0.00019178,2]
[346422356,1734955838384,-500.0,0.00019178,2]
[346422358,1734955838393,-500.0,0.00019178,2]
[346422360,1734955838403,-500.0,0.00019178,2]
[346422362,1734955838417,-772.53,0.00019178,2]
[346422364,1734955838426,-257.53123386,0.00019178,2]
[346422366,1734955838435,-500.0,0.00019178,2]
[346422368,1734955838445,-712.99,0.00019178,2]
[346422370,1734955838454,-3481.14,0.00019178,2]
[346422372,1734955838463,-500.0,0.00019178,2]
[346422374,1734955838472,-502.22496079,0.00019178,2]
[346422376,1734955838481,-660.16,0.00019178,2]
[346422378,1734955838491,-500.0,0.00019178,2]
[346422380,1734955838502,-1848.3,0.00019178,2]
[346422382,1734955838512,-503.42428456,0.00019178,2]
[346422384,1734955838521,-500.0,0.00019178,2]
[346422386,1734955838532,-500.0,0.00019178,2]
[346422389,1734955838541,-500.57417738,0.00019178,2]
[346422391,1734955838551,-735.19,0.00019178,2]
[346422392,1734955838560,-876.41,0.00019178,2]
[346422394,1734955838569,-500.0,0.00019178,2]
[346422396,1734955838578,-500.0,0.00019178,2]
[346422398,1734955838587,-500.0,0.00019178,2]
[346422400,1734955838596,-500.0,0.00019178,2]
[346422401,1734955838604,-500.0,0.00019178,2]
[346422402,1734955838613,-137.86313788,0.00019178,2]
[346422403,1734955838627,-527.89686212,0.00019178,2]
[346422404,1734955838637,-181.715927,0.00019178,2]
[346422405,1734955838646,-500.0,0.00019178,2]
[346422406,1734955838656,-649.65353779,0.00019178,2]
[346422407,1734955838666,-671.08,0.00019178,2]
[346422408,1734955838676,-317.49821485,0.00019178,2]
[346422409,1734955838705,-425.50178515,0.00019178,2]
[346422410,1734955838715,-500.0,0.00019178,2]
[346422411,1734955838725,-77.24974362,0.00019178,2]
[346422412,1734955838737,-422.75025638,0.00019178,2]
[346422413,1734955838747,-500.0,0.00019178,2]
[346422414,1734955838758,-263.09714709,0.00019178,2]
[346422415,1734955838768,-500.0,0.00019178,2]
[346422416,1734955838778,-500.0,0.00019178,2]
[346422417,1734955838787,-468.39205168,0.00019178,2]
[346422418,1734955838799,-31.60794832,0.00019178,2]
[346422419,1734955838808,-306.66759935,0.00019178,2]
[346422420,1734955838820,-193.33240065,0.00019178,2]
[346422421,1734955838829,-678.05,0.00019178,2]
[346422422,1734955838839,-500.0,0.00019178,2]
[346422423,1734955838848,-500.0,0.00019178,2]
[346422424,1734955838857,-500.0,0.00019178,2]
[346422425,1734955838867,-500.0,0.00019178,2]
[346422426,1734955838876,-500.0,0.00019178,2]
[346422427,1734955838885,-512.12870214,0.00019178,2]
[346422428,1734955838895,-1259.63,0.00019178,2]
[346422429,1734955838904,-500.0,0.00019178,2]
[346422430,1734955838914,-202.130661,0.00019178,2]
[346422431,1734955838923,-613.77,0.00019178,2]
[346422432,1734955838934,-500.0,0.00019178,2]
[346422433,1734955838944,-500.0,0.00019178,2]
[346422434,1734955838954,-500.0,0.00019178,2]
[346422435,1734955838964,-500.0,0.00019178,2]
[346422436,1734955838973,-1801.20702634,0.00019178,2]
[346422437,1734955838985,-323.70297366,0.00019178,2]
[346422438,1734955838995,-500.0,0.00019178,2]
[346422439,1734955839004,-500.0,0.00019178,2]
[346422440,1734955839014,-500.0,0.00019178,2]
[346422441,1734955839023,-827.43,0.00019178,2]
[346422442,1734955839033,-500.0,0.00019178,2]
[346422443,1734955839043,-500.0,0.00019178,2]
[346422444,1734955839052,-500.0,0.00019178,2]
[346422445,1734955839061,-501.06727096,0.00019178,2]
[346422446,1734955839070,-500.0,0.00019178,2]
[346422447,1734955839079,-500.0,0.00019178,2]
[346422448,1734955839089,-500.0,0.00019178,2]
[346422449,1734955839098,-736.46,0.00019178,2]
[346422450,1734955839107,-500.0,0.00019178,2]
[346422451,1734955839117,-311.79770643,0.00019178,2]
[346422452,1734955839131,-199.21815509,0.00019178,2]
[346422453,1734955839140,-271.17278866,0.00019178,2]
[346422454,1734955839152,-1622.88721134,0.00019178,2]
[346422455,1734955839161,-500.0,0.00019178,2]
[346422456,1734955839170,-295.67487404,0.00019178,2]
[346422457,1734955839181,-500.0,0.00019178,2]
[346422458,1734955839191,-500.0,0.00019178,2]
[346422459,1734955839201,-1083.2,0.00019178,2]
[346422460,1734955839210,-2542.94,0.00019178,2]
[346422461,1734955839220,-500.0,0.00019178,2]
[346422462,1734955839229,-500.0,0.00019178,2]
[346422463,1734955839239,-927.93,0.00019178,2]
[346422464,1734955839249,-555.41,0.00019178,2]
[346422465,1734955839258,-1088.6,0.00019178,2]
[346422466,1734955839268,-500.0,0.00019178,2]
[346422467,1734955839278,-981.64,0.00019178,2]
[346422468,1734955839288,-598.28,0.00019178,2]
[346422469,1734955839297,-500.0,0.00019178,2]
[346422470,1734955839306,-500.0,0.00019178,2]
[346422471,1734955839315,-500.0,0.00019178,2]
[346422472,1734955839324,-566.64,0.00019178,2]
[346422473,1734955839334,-500.0,0.00019178,2]
[346422474,1734955839344,-500.0,0.00019178,2]
[346422475,1734955839353,-617.25,0.00019178,2]
[346422476,1734955839363,-659.44,0.00019178,2]
[346422477,1734955839373,-500.0,0.00019178,2]
[346422478,1734955839382,-500.0,0.00019178,2]
[346422479,1734955839392,-500.0,0.00019178,2]
[346422481,1734955839401,-500.0,0.00019178,2]
[346422482,1734955839411,-500.0,0.00019178,2]
[346422483,1734955839421,-517.44568322,0.00019178,2]
[346422484,1734955839431,-500.0,0.00019178,2]
[346422485,1734955839440,-500.0,0.00019178,2]
[346422486,1734955839449,-500.0,0.00019178,2]
[346422487,1734955839458,-541.75996325,0.00019178,2]
[346422488,1734955839468,-500.0,0.00019178,2]
[346422489,1734955839478,-500.0,0.00019178,2]
[346422490,1734955839487,-501.09755772,0.00019178,2]
[346422491,1734955839497,-2678.11,0.00019178,2]
[346422492,1734955839510,-500.0,0.00019178,2]
[346422493,1734955839520,-1279.88,0.00019178,2]
[346422494,1734955839530,-500.0,0.00019178,2]
[346422495,1734955839539,-500.0,0.00019178,2]
[346422496,1734955839550,-500.0,0.00019178,2]
[346422497,1734955839559,-1452.53,0.00019178,2]
[346422498,1734955839569,-500.0,0.00019178,2]
[346422499,1734955839579,-500.0,0.00019178,2]
[346422500,1734955839589,-753.5,0.00019178,2]
[346422501,1734955839599,-500.0,0.00019178,2]
[346422502,1734955839609,-500.0,0.00019178,2]